bitfinex-derivatives/quotes_SOLF0:USTF0_20241107
["timestamp","ask_amount","ask_price","bid_price","bid_amount"]
[1730945381388,12.55043279,191.33,191.02,15.73]
[1730945381684,12.55043279,191.21,191.1,0.5089]
[1730945381878,4.04,191.2,191.09,12.55043279]
[1730945382078,4.04,191.2,191.04,17.10073279]
[1730945382079,12.55043279,191.16,191.04,17.10073279]
[1730945382281,7.7998,191.2,191.04,0.5103]
[1730945382482,12.55043279,191.13,191.04,0.5103]
[1730945382680,4.02,191.12,191.0,12.55043279]
[1730945382882,4.02,191.12,191.03,12.55043279]
[1730945383474,4.02,191.12,191.05,12.55043279]
[1730945384094,12.55043279,191.18,191.08,12.55043279]
[1730945384095,4.02,191.17,191.08,12.55043279]
[1730945384278,12.55043279,191.15,190.95,0.5103]
[1730945384479,12.55043279,191.15,190.95,4.5303]
[1730945384683,12.55043279,191.15,191.02,12.55043279]
[1730945385589,12.55043279,191.09,190.95,0.5103]
[1730945385791,16.57043279,191.09,190.97,12.55043279]
[1730945385994,4.02,191.09,190.99,12.55043279]
[1730945387394,4.02,191.09,190.96,24.12872525]
[1730945387695,4.02,191.09,190.96,20.10872525]
[1730945388090,25.33652525,191.09,190.89,2.57497031]
[1730945388288,20.10872525,191.04,190.89,2.57497031]
[1730945388489,20.10872525,191.04,190.9,20.10872525]
[1730945388795,4.02,191.03,190.9,20.10872525]
[1730945388994,4.02,191.02,190.9,20.10872525]
[1730945389288,21.10872525,191.08,190.9,20.10872525]
[1730945389489,4.02,191.07,190.9,20.10872525]
[1730945390984,4.02,191.06,190.91,0.5117]
[1730945391487,21.10872525,191.08,190.91,0.5117]
[1730945391689,4.02,191.07,190.91,0.5117]
[1730945392696,20.10872525,191.04,190.91,0.5117]
[1730945394497,4.04,191.03,190.91,0.5117]
[1730945394684,4.04,191.03,190.93,20.10872525]
[1730945395285,4.04,191.03,190.87,4.02]
[1730945395488,4.04,191.03,190.88,20.10872525]
[1730945396288,4.04,191.03,190.85,20.10872525]
[1730945396493,20.10872525,191.0,190.85,20.10872525]
[1730945398701,1.1944,190.99,190.85,20.10872525]
[1730945399496,4.04,190.98,190.85,20.10872525]
[1730945399803,5.2344,190.99,190.85,20.10872525]
[1730945400596,20.10872525,190.97,190.84,0.5127]
[1730945401812,20.10872525,190.94,190.77,4.04]
[1730945402096,7.6358,190.99,190.77,4.04]
[1730945402097,20.10872525,190.91,190.77,4.04]
[1730945402292,5.2787,190.9,190.76,20.10872525]
[1730945402697,7.7515,190.9,190.76,20.10872525]
[1730945405798,27.86022525,190.9,190.73,0.514]
[1730945405994,27.86022525,190.9,190.73,20.62272525]
[1730945406504,27.86022525,190.9,190.76,20.10872525]
[1730945407504,27.86022525,190.9,190.73,20.62272525]
[1730945410107,4.04,190.89,190.73,20.62272525]
[1730945410308,4.04,190.89,190.73,20.10872525]
[1730945411406,16.62294914,190.89,190.78,12.58294914]
[1730945411607,3.7115,190.9,190.8,12.58294914]
[1730945411810,4.04,190.89,190.8,12.58294914]
[1730945420111,1.2387,190.9,190.83,12.58294914]
[1730945420413,4.02,190.93,190.83,12.58294914]
[1730945421302,4.02,190.93,190.78,12.58294914]
[1730945421303,4.02,190.93,190.86,12.58294914]
[1730945421813,15.04364914,191.01,190.91,12.58294914]
[1730945422013,15.04364914,191.01,190.81,4.02]
[1730945422014,7.7465,191.01,190.93,12.58294914]
[1730945422607,7.7465,191.01,190.81,4.02]
[1730945422808,7.7465,191.01,190.92,12.58294914]
[1730945423012,7.7465,191.01,190.89,12.58294914]
[1730945423314,12.58294914,190.97,190.87,12.58294914]
[1730945423517,12.58294914,190.94,190.84,12.58294914]
[1730945423701,6.4663,190.93,190.84,12.58294914]
[1730945424208,1.2398,190.92,190.84,12.58294914]
[1730945427009,1.2398,190.92,190.81,12.58294914]
[1730945427010,16.38455744,190.92,190.81,12.58294914]
[1730945427212,13.82274914,190.92,190.81,12.58294914]
[1730945427407,16.41023316,190.92,190.81,12.58294914]
[1730945428115,2.4463,190.93,190.84,12.58294914]
[1730945428315,2.4463,190.93,190.79,4.02]
[1730945428509,1.2104,190.93,190.86,12.58294914]
[1730945428713,1.2214,190.92,190.86,12.58294914]
[1730945430313,1.3015,190.99,190.89,12.58294914]
[1730945430314,4.02,190.96,190.89,12.58294914]
[1730945431419,1.1943,190.97,190.87,20.12871633]
[1730945440629,1.0,191.0,190.9,20.12871633]
[1730945441129,4.02,191.01,190.9,20.12871633]
[1730945441826,3.6847,191.08,190.94,20.12871633]
[1730945442026,3.6847,191.08,190.91,0.5122]
[1730945442229,3.6847,191.08,191.0,20.12871633]
[1730945442432,58.62900279,191.12,191.03,20.12871633]
[1730945443433,58.62900279,191.12,191.06,20.12871633]
[1730945443631,20.12871633,191.2,191.09,20.12871633]
[1730945443632,4.02,191.2,191.09,20.12871633]
[1730945443824,4.02,191.2,191.06,20.12871633]
[1730945444024,24.14871633,191.2,191.06,20.12871633]
[1730945444431,26.72797231,191.2,191.06,20.12871633]
[1730945444635,20.12871633,191.17,191.0,0.5114]
[1730945444833,20.12871633,191.17,191.01,20.12871633]
[1730945447244,2.57925598,191.2,191.04,20.12871633]
[1730945447548,4.02,191.19,191.04,20.12871633]
[1730945447749,20.12871633,191.18,191.04,20.12871633]
[1730945449243,20.12871633,191.18,191.0,0.5114]
[1730945449244,20.12871633,191.18,191.01,20.12871633]
[1730945449549,20.12871633,191.14,191.0,0.5114]
[1730945449744,6.5393,191.13,191.0,0.5114]
[1730945449949,6.5393,191.13,191.01,20.12871633]
[1730945450143,6.5393,191.13,191.0,0.5114]
[1730945450347,6.5393,191.13,190.99,4.02]
[1730945450749,1.198,191.12,190.99,4.02]
[1730945451149,20.12871633,191.11,190.98,20.12871633]
[1730945451351,22.76373985,191.11,190.95,20.12871633]
[1730945452849,20.12871633,191.08,190.91,0.5104]
[1730945453154,4.02,191.07,190.91,0.5104]
[1730945453347,12.57586443,191.04,190.92,12.57586443]
[1730945453547,12.57586443,191.06,190.94,12.57586443]
[1730945454157,12.57586443,191.03,190.93,12.57586443]
[1730945454450,2.4913,191.05,190.93,12.57586443]
[1730945454952,2.4913,191.05,190.92,12.57586443]
[1730945459347,2.4913,191.05,190.96,12.57586443]
[1730945459553,4.02,191.04,190.96,12.57586443]
[1730945459852,4.02,191.04,190.91,0.5104]
[1730945459853,4.02,191.04,190.93,12.57586443]
[1730945460851,12.57586443,191.03,190.91,0.5104]
[1730945461052,12.57586443,191.03,190.91,13.08626443]
[1730945461848,12.57586443,191.03,190.91,12.57586443]
[1730945462154,1.2401,191.02,190.91,12.57586443]
[1730945462353,4.02,191.04,190.94,12.57586443]
[1730945462559,6.5113,191.05,190.96,12.57586443]
[1730945462959,4.02,191.05,190.96,12.57586443]
[1730945463752,4.02,191.08,190.99,12.57586443]
[1730945465259,2.417,191.11,191.02,12.57586443]
[1730945465456,1.1992,191.11,191.02,12.57586443]
[1730945465861,62.64688344,191.12,191.02,12.57586443]
[1730945466558,1.2493,191.18,191.0,0.5121]
[1730945466559,13.82516443,191.18,191.07,12.57586443]
[1730945466857,1.2493,191.18,191.1,12.57586443]
[1730945467162,2.66052048,191.22,191.13,12.57586443]
[1730945467656,4.02,191.23,191.13,12.57586443]
[1730945468160,15.09176443,191.26,191.08,3.14533483]
[1730945468161,2.5159,191.26,191.16,12.57586443]
[1730945468363,1.2584,191.26,191.18,12.57586443]
[1730945468853,1.2575,191.32,191.18,12.57586443]
[1730945469054,12.57586443,191.3,191.18,12.57586443]
[1730945469451,5.2784,191.31,191.16,20.08608051]
[1730945470653,20.08608051,191.29,191.1,4.02]
[1730945470955,20.08608051,191.29,191.13,20.08608051]
[1730945471757,5.2784,191.31,191.13,20.08608051]
[1730945471951,20.08608051,191.3,191.13,20.08608051]
[1730945472151,20.08608051,191.27,191.13,20.08608051]
[1730945473661,58.55442889,191.36,191.19,20.08608051]
[1730945473964,2.60459563,191.39,191.23,20.08608051]
[1730945474265,4.0,191.39,191.23,20.08608051]
[1730945475262,20.08608051,191.37,191.23,20.08608051]
[1730945475459,2.4418,191.36,191.2,0.5088]
[1730945475859,1.2094,191.35,191.2,0.5088]
[1730945478167,2.4418,191.36,191.25,20.08608051]
[1730945478670,4.0,191.37,191.25,20.08608051]
[1730945478852,4.0,191.37,191.23,4.0]
[1730945479055,4.0,191.37,191.25,20.08608051]
[1730945480864,4.0,191.37,191.23,20.08608051]
[1730945481664,4.0,191.37,191.2,0.5088]
[1730945481665,20.08608051,191.35,191.2,20.59488051]
[1730945481860,1.2781,191.34,191.2,20.59488051]
[1730945483975,1.2781,191.34,191.2,20.08608051]
[1730945484969,20.08608051,191.32,191.16,20.08608051]
[1730945485173,20.08608051,191.32,191.14,0.5072]
[1730945485174,6.5598,191.31,191.14,0.5072]
[1730945485378,20.08608051,191.29,191.14,0.5072]
[1730945485576,2.55735168,191.29,191.12,20.08608051]
[1730945485777,20.08608051,191.28,191.12,20.08608051]
[1730945486676,22.64588051,191.31,191.15,20.08608051]
[1730945486874,6.62158567,191.3,191.15,20.08608051]
[1730945487074,20.08608051,191.28,191.15,20.08608051]
[1730945487377,2.57555164,191.27,191.12,20.08608051]
[1730945488683,2.66840437,191.27,191.12,20.08608051]
[1730945489481,20.08608051,191.28,191.12,20.08608051]
[1730945489877,22.70610896,191.28,191.12,20.08608051]
[1730945491279,22.70610896,191.28,191.1,0.5072]
[1730945491280,20.08608051,191.25,191.1,0.5072]
[1730945491480,5.2077,191.24,191.09,20.08608051]
[1730945491870,2.5333,191.23,191.09,20.08608051]
[1730945492277,4.0,191.22,191.05,4.0]
[1730945492474,4.0,191.22,191.11,20.08608051]
[1730945493176,4.0,191.22,191.05,4.0]
[1730945493177,4.0,191.22,191.08,20.08608051]
[1730945493379,24.08608051,191.22,191.08,20.08608051]
[1730945496601,20.08608051,191.18,191.05,20.08608051]
[1730945496798,20.08608051,191.18,191.01,20.08608051]
[1730945497392,20.08608051,191.15,191.01,20.08608051]
[1730945497690,7.8376,191.14,191.01,20.08608051]
[1730945498096,10.43450478,191.14,191.01,20.08608051]
[1730945498296,20.08608051,191.12,190.84,37.68]
[1730945498501,20.08608051,191.12,190.95,20.08608051]
[1730945504603,3.98,191.11,190.98,20.08608051]
[1730945505399,3.98,191.11,190.92,4.0]
[1730945505600,3.98,191.11,190.99,20.08608051]
[1730945507603,3.98,191.11,190.95,20.08608051]
[1730945510014,3.98,191.1,190.99,20.08608051]
[1730945511009,3.8376,191.14,191.02,20.08608051]
[1730945511208,6.5627,191.14,191.02,20.08608051]
[1730945511513,3.98,191.14,191.05,20.08608051]
[1730945512007,3.98,191.14,191.02,20.08608051]
[1730945516309,6.57025679,191.14,191.02,20.08608051]
[1730945516509,6.57025679,191.14,191.0,0.5087]
[1730945516710,26.6563373,191.14,191.0,0.5087]
[1730945516906,1.208,191.13,191.0,0.5087]
[1730945518514,2.4986,191.13,191.0,0.5087]
[1730945519416,1.2648,191.12,191.0,0.5087]
[1730945523317,13.83044501,191.12,191.0,13.07434501]
[1730945523517,13.83044501,191.12,191.0,12.56564501]
[1730945524320,12.56564501,191.09,190.97,12.56564501]
[1730945524520,3.98,191.08,190.97,12.56564501]
[1730945524715,12.56564501,191.07,190.97,12.56564501]
[1730945524920,12.56564501,191.07,190.94,12.56564501]
[1730945525218,3.98,191.06,190.94,12.56564501]
[1730945525626,1.1984,191.05,190.94,12.56564501]
[1730945527525,12.56564501,191.04,190.94,12.56564501]
[1730945527720,12.56564501,191.04,190.88,0.5087]
[1730945527721,16.406243,191.04,190.91,12.56564501]
[1730945528214,1.1984,191.05,190.97,12.56564501]
[1730945528414,3.98,191.04,190.99,12.56564501]
[1730945528613,3.98,191.04,190.91,3.98]
[1730945528614,3.98,191.09,191.02,12.56564501]
[1730945530524,3.98,191.09,190.98,0.5094]
[1730945530830,3.98,191.09,190.98,13.07504501]
[1730945531618,12.56564501,191.08,190.98,12.56564501]
[1730945532017,12.56564501,191.08,190.95,12.56564501]
[1730945532233,3.98,191.09,190.93,0.5094]
[1730945532234,12.56564501,191.05,190.93,0.5094]
[1730945532424,12.56564501,191.05,190.95,12.56564501]
[1730945533821,12.56564501,191.07,190.95,12.56564501]
[1730945535425,12.56564501,191.1,191.0,12.56564501]
[1730945535621,3.98,191.09,191.0,12.56564501]
[1730945535817,2.5604,191.11,191.03,12.56564501]
[1730945536022,2.5604,191.11,190.97,12.56564501]
[1730945536023,3.98,191.13,191.05,12.56564501]
[1730945536926,3.98,191.13,190.98,0.5082]
[1730945537123,3.98,191.13,191.05,12.56564501]
[1730945537319,3.98,191.13,191.01,20.09951281]
[1730945539324,3.98,191.13,190.98,0.5082]
[1730945539535,25.31581281,191.13,190.98,0.5082]
[1730945539727,1.2166,191.12,190.98,0.5082]
[1730945540127,20.09951281,191.06,190.91,20.09951281]
[1730945540333,5.2252,191.05,190.91,20.09951281]
[1730945540733,5.2252,191.05,190.92,20.09951281]
[1730945542726,5.2252,191.05,190.88,0.5076]
[1730945542932,5.2252,191.05,190.9,20.09951281]
[1730945543335,1.3124,191.04,190.9,20.09951281]
[1730945543534,3.92220838,191.04,190.9,20.09951281]
[1730945544430,1.3124,191.04,190.9,20.09951281]
[1730945550640,3.98,191.03,190.9,20.09951281]
[1730945551539,3.98,191.03,190.93,20.09951281]
[1730945555147,1.0,191.11,190.96,20.09951281]
[1730945555448,3.98,191.1,190.99,20.09951281]
[1730945556549,3.98,191.1,190.97,0.5086]
[1730945557437,12.57098752,191.08,190.97,0.5086]
[1730945558043,12.57098752,191.08,190.96,12.57098752]
[1730945558443,13.79688752,191.08,190.96,12.57098752]
[1730945559445,1.2259,191.08,190.94,20.11379259]
[1730945562346,1.2232,191.09,190.97,20.11379259]
[1730945562541,3.98,191.1,190.97,20.11379259]
[1730945562750,22.69059259,191.13,190.97,20.11379259]
[1730945562751,22.69059259,191.13,190.98,0.5084]
[1730945562940,3.98,191.12,190.98,0.5084]
[1730945563448,1.3082,191.13,191.0,20.11379259]
[1730945563649,3.96,191.12,191.0,20.11379259]
[1730945565148,3.96,191.12,190.98,0.5084]
[1730945565352,20.11379259,191.09,190.98,0.5084]
[1730945565652,20.11379259,191.09,190.94,20.11379259]
[1730945566049,20.11379259,191.06,190.92,0.5084]
[1730945566252,5.2065,191.05,190.88,3.96]
[1730945566448,7.79964344,191.05,190.88,24.58219259]
[1730945567754,20.11379259,191.03,190.88,20.11379259]
[1730945567954,1.2919,191.02,190.88,20.11379259]
[1730945568155,20.11379259,191.0,190.85,20.11379259]
[1730945568350,3.96,190.99,190.85,20.11379259]
[1730945573463,1.2919,191.02,190.88,20.11379259]
[1730945573860,3.96,191.01,190.89,0.509]
[1730945574059,3.96,191.0,190.91,20.11379259]
[1730945574259,1.2465,191.05,190.91,20.11379259]
[1730945574467,1.2114,191.07,190.95,20.11379259]
[1730945574666,3.96,191.06,190.95,20.11379259]
[1730945574863,3.96,191.06,190.89,4.469]
[1730945574864,24.07379259,191.06,190.89,0.509]
[1730945575065,1.2092,191.05,190.89,20.62279259]
[1730945575362,20.11379259,191.03,190.89,20.62279259]
[1730945575767,22.75246226,191.03,190.89,20.62279259]
[1730945575964,22.75246226,191.03,190.89,0.509]
[1730945576161,20.11379259,191.0,190.86,20.11379259]
[1730945576361,3.96,190.99,190.86,20.11379259]
[1730945577069,6.55689308,190.99,190.86,20.11379259]
[1730945578467,3.96,190.99,190.86,20.11379259]
[1730945579766,3.96,190.99,190.87,0.5092]
[1730945580971,20.11379259,190.96,190.83,20.11379259]
[1730945581167,20.11379259,190.96,190.8,0.5092]
[1730945581368,1.3085,190.95,190.8,0.5092]
[1730945581963,1.3085,190.95,190.83,20.11379259]
[1730945583478,12.57280514,190.97,190.85,12.57280514]
[1730945583778,1.1845,191.03,190.94,12.57280514]
[1730945583974,3.96,191.02,190.94,12.57280514]
[1730945584569,3.96,191.02,190.89,0.5103]
[1730945584768,3.96,191.02,190.93,12.57280514]
[1730945585373,1.1882,191.07,190.93,20.11478516]
[1730945585569,3.96,191.06,190.93,20.11478516]
[1730945586776,3.96,191.06,190.96,20.11478516]
[1730945586976,21.36008516,191.12,190.96,20.11478516]
[1730945586977,3.96,191.07,190.96,20.11478516]
[1730945587184,3.96,191.07,190.97,0.5103]
[1730945588274,3.96,191.07,190.99,20.11478516]
[1730945588469,1.2721,191.13,190.99,20.11478516]
[1730945588876,3.96,191.12,190.99,20.11478516]
[1730945590485,3.96,191.12,191.02,20.11478516]
[1730945591177,3.96,191.14,191.02,20.11478516]
[1730945592280,6.53220579,191.14,190.99,20.11478516]
[1730945592987,3.96,191.14,190.99,20.11478516]
[1730945595285,20.11478516,191.11,190.97,0.5103]
[1730945595680,3.96,191.14,190.99,20.11478516]
[1730945595885,3.94,191.15,191.02,20.11478516]
[1730945596087,3.94,191.15,191.05,20.11478516]
[1730945596390,3.94,191.15,191.06,0.5071]
[1730945597986,3.94,191.17,191.06,0.5071]
[1730945598394,22.73718516,191.21,191.06,0.5071]
[1730945598695,3.94,191.2,191.06,0.5071]
[1730945598986,22.73718516,191.21,191.06,0.5071]
[1730945599191,3.94,191.2,191.06,0.5071]
[1730945599387,20.11478516,191.17,190.99,3.94]
[1730945599589,20.11478516,191.17,191.01,20.11478516]
[1730945600989,20.11478516,191.14,191.0,0.5068]
[1730945601188,5.1967,191.13,191.0,0.5068]
[1730945603592,1.2567,191.13,191.0,0.5068]
[1730945607399,1.2567,191.13,191.02,12.56254829]
[1730945610301,12.56254829,191.11,191.0,13.06934829]
[1730945610501,12.56254829,191.11,190.96,35.44572393]
[1730945610806,12.56254829,191.11,190.98,12.56254829]
[1730945611704,12.56254829,191.09,190.98,12.56254829]
[1730945611896,3.94,191.08,190.98,12.56254829]
[1730945612101,5.1947,191.08,190.98,12.56254829]
[1730945612498,12.56254829,191.06,190.88,0.5074]
[1730945612803,12.56254829,191.06,190.94,12.56254829]
[1730945613001,1.302,191.05,190.94,12.56254829]
[1730945613495,12.56254829,191.11,191.0,12.56254829]
[1730945613805,3.94,191.09,191.0,12.56254829]
[1730945616105,3.94,191.09,190.97,13.07004829]
[1730945616106,1.2098,191.12,191.03,12.56254829]
[1730945616306,1.2098,191.12,191.05,12.56254829]
[1730945619507,1.2098,191.12,190.97,13.07004829]
[1730945619508,1.2098,191.12,191.02,12.56254829]
[1730945620410,1.2098,191.12,190.97,0.5075]
[1730945620411,1.2098,191.12,191.04,12.56254829]
[1730945621106,1.2098,191.12,191.02,12.56254829]
[1730945622102,1.2098,191.12,191.04,12.56254829]
[1730945623407,1.2098,191.12,190.84,53.43]
[1730945623408,12.56254829,191.08,190.84,53.43]
[1730945623609,3.94,191.07,190.96,12.56254829]
[1730945623909,3.94,191.07,190.98,12.56254829]
[1730945625101,3.94,191.07,191.01,12.56254829]
[1730945626905,5.1498,191.12,190.97,12.56254829]
[1730945627112,1.2098,191.12,191.04,12.56254829]
[1730945627312,61.17799855,191.13,191.06,12.56254829]
[1730945627508,2.5564,191.13,191.06,12.56254829]
[1730945627711,3.94,191.17,191.09,12.56254829]
[1730945627912,12.56254829,191.22,191.09,12.56254829]
[1730945628117,3.94,191.21,191.09,12.56254829]
[1730945628505,12.56254829,191.22,191.09,12.56254829]
[1730945628709,3.94,191.2,191.09,12.56254829]
[1730945630216,12.56254829,191.19,191.09,12.56254829]
[1730945630408,3.94,191.2,190.97,48.0081473]
[1730945630409,12.56254829,191.12,190.97,35.44559901]
[1730945630607,3.94,191.11,190.97,35.44559901]
[1730945630811,12.56254829,191.09,190.98,12.56254829]
[1730945632320,16.50254829,191.09,190.98,12.56254829]
[1730945634620,3.7673,191.11,191.0,12.56254829]
[1730945634814,3.94,191.1,191.0,12.56254829]
[1730945635923,3.94,191.1,190.96,0.5066]
[1730945635924,16.50254829,191.1,190.98,12.56254829]
[1730945637328,3.7673,191.11,191.0,12.56254829]
[1730945637526,3.94,191.11,191.03,12.56254829]
[1730945638319,58.61175092,191.16,191.08,12.56254829]
[1730945638532,3.7084,191.18,191.11,12.56254829]
[1730945638533,2.4875,191.18,191.11,12.56254829]
[1730945638729,3.94,191.2,191.11,12.56254829]
[1730945639234,16.50254829,191.2,191.08,12.56254829]
[1730945639417,3.94,191.2,191.11,12.56254829]
[1730945639726,12.56254829,191.23,191.11,12.56254829]
[1730945639727,3.94,191.21,191.11,12.56254829]
[1730945641716,3.94,191.21,191.08,12.56254829]
[1730945643326,12.56254829,191.2,191.08,12.56254829]
[1730945643530,3.94,191.21,191.08,12.56254829]
[1730945643726,3.94,191.23,191.13,12.56254829]
[1730945643925,7.6484,191.24,191.13,12.56254829]
[1730945644730,62.5232457,191.27,191.16,12.56254829]
[1730945646631,58.5832457,191.27,191.16,12.56254829]
[1730945648330,58.5832457,191.27,191.08,4.4458]
[1730945648532,58.5832457,191.27,191.15,12.56254829]
[1730945649630,37.7,191.32,191.15,12.56254829]
[1730945649631,3.94,191.39,191.25,12.56254829]
[1730945649822,16.50254829,191.39,191.28,12.56254829]
[1730945650022,19.07665738,191.39,191.28,12.56254829]
[1730945650218,19.07665738,191.39,191.26,12.56254829]
[1730945650219,12.56254829,191.36,191.26,12.56254829]
[1730945650625,1.232,191.35,191.26,12.56254829]
[1730945650825,3.7118,191.35,191.26,12.56254829]
[1730945651426,3.7118,191.35,191.22,20.0756237]
[1730945653426,3.7118,191.35,191.25,20.0756237]
[1730945653628,23.9956237,191.41,191.25,20.0756237]
[1730945653830,3.8339,191.4,191.25,20.0756237]
[1730945661135,3.8339,191.4,191.22,3.92]
[1730945661439,3.8339,191.4,191.23,20.0756237]
[1730945667737,20.0756237,191.38,191.23,20.0756237]
[1730945669547,20.0756237,191.38,191.2,20.0756237]
[1730945670842,3.8339,191.4,191.2,20.0756237]
[1730945670843,20.0756237,191.34,191.2,20.0756237]
[1730945671042,3.92,191.33,191.2,20.0756237]
[1730945672244,20.0756237,191.31,191.16,0.5045]
[1730945672542,2.5153,191.32,191.18,20.0756237]
[1730945672744,2.5153,191.32,191.21,20.0756237]
[1730945672745,1.2219,191.32,191.21,20.0756237]
[1730945672943,3.92,191.36,191.21,23.9956237]
[1730945673446,3.92,191.36,191.26,12.54465435]
[1730945674943,3.92,191.37,191.26,12.54465435]
[1730945675740,2.5153,191.39,191.29,12.54465435]
[1730945675939,6.4353,191.39,191.29,12.54465435]
[1730945678437,2.5153,191.39,191.29,12.54465435]
[1730945678839,12.54465435,191.43,191.31,12.54465435]
[1730945679142,3.92,191.42,191.34,12.54465435]
[1730945679843,62.45755798,191.44,191.34,12.54465435]
[1730945680041,58.53755798,191.44,191.37,12.54465435]
[1730945681349,16.46465435,191.53,191.42,12.54465435]
[1730945682436,16.46465435,191.53,191.44,12.54465435]
[1730945683140,3.6414,191.55,191.44,12.54465435]
[1730945684140,37.64,191.6,191.44,12.54465435]
[1730945684342,37.64,191.6,191.46,12.54465435]
[1730945684543,3.9,191.6,191.5,12.54465435]
[1730945687848,3.9,191.6,191.52,12.54465435]
[1730945688045,3.9,191.6,191.46,13.04485435]
[1730945688046,3.6609,191.65,191.46,0.5002]
[1730945688247,12.54465435,191.61,191.48,12.54465435]
[1730945688442,12.54465435,191.61,191.51,12.54465435]
[1730945688643,15.10949997,191.63,191.51,12.54465435]
[1730945690254,12.54465435,191.61,191.49,12.54465435]
[1730945690443,12.54465435,191.61,191.51,12.54465435]
[1730945690643,12.54465435,191.63,191.51,12.54465435]
[1730945691546,12.54465435,191.61,191.51,12.54465435]
[1730945692256,12.54465435,191.61,191.49,12.54465435]
[1730945694449,12.54465435,191.61,191.46,0.5002]
[1730945694450,12.54465435,191.58,191.46,13.04485435]
[1730945694646,3.9,191.57,191.46,13.04485435]
[1730945694844,3.9,191.57,191.46,12.54465435]
[1730945695047,3.9,191.57,191.38,35.37073099]
[1730945695048,13.78825435,191.56,191.43,12.54465435]
[1730945696653,15.00265435,191.56,191.43,12.54465435]
[1730945700250,15.00265435,191.56,191.46,12.54465435]
[1730945700251,13.78825435,191.56,191.46,12.54465435]
[1730945700750,13.78825435,191.56,191.43,12.54465435]
[1730945702766,12.54465435,191.53,191.39,0.4974]
[1730945703058,12.54465435,191.48,191.36,12.54465435]
[1730945703253,3.9,191.47,191.36,12.54465435]
[1730945703857,2.61175322,191.47,191.36,12.54465435]
[1730945704059,3.9,191.5,191.39,12.54465435]
[1730945704558,12.54465435,191.48,191.39,12.54465435]
[1730945704953,13.84375435,191.48,191.37,12.54465435]
[1730945705750,1.2991,191.48,191.37,12.54465435]
[1730945706363,1.2991,191.48,191.39,12.54465435]
[1730945707267,1.1852,191.55,191.39,12.54465435]
[1730945707454,3.9,191.6,191.47,12.54465435]
[1730945707656,12.54465435,191.62,191.5,12.54465435]
[1730945707856,3.9,191.62,191.53,12.54465435]
[1730945708059,2.5793,191.63,191.49,3.9]
[1730945708265,3.9,191.65,191.55,12.54465435]
[1730945708468,0.21576,191.66,191.57,12.54465435]
[1730945708662,0.21576,191.66,191.5,0.4996]
[1730945708663,0.21576,191.66,191.55,12.54465435]
[1730945708965,12.54465435,191.61,191.5,0.4996]
[1730945709357,12.54465435,191.61,191.48,12.54465435]
[1730945709558,1.3104,191.6,191.48,12.54465435]
[1730945709762,12.54465435,191.59,191.48,12.54465435]
[1730945709965,12.54465435,191.56,191.43,12.54465435]
[1730945710160,12.54465435,191.53,191.4,35.36478987]
[1730945710362,12.54465435,191.51,191.39,12.54465435]
[1730945710560,12.54465435,191.48,191.36,12.54465435]
[1730945710764,3.9,191.47,191.36,12.54465435]
[1730945712868,12.54465435,191.48,191.36,12.54465435]
[1730945713170,3.88,191.46,191.36,12.54465435]
[1730945713371,3.88,191.46,191.34,20.07040538]
[1730945715268,3.88,191.49,191.34,20.07040538]
[1730945715466,3.88,191.49,191.31,0.4996]
[1730945715467,3.88,191.49,191.38,20.07040538]
[1730945716267,3.88,191.49,191.34,20.07040538]
[1730945719472,3.88,191.49,191.31,0.4996]
[1730945719668,3.88,191.49,191.37,20.07040538]
[1730945719867,2.3989,191.52,191.37,20.07040538]
[1730945720168,2.3989,191.52,191.4,20.07040538]
[1730945721780,2.3989,191.52,191.37,23.95040538]
[1730945723173,2.3989,191.52,191.37,20.07040538]
[1730945723577,20.07040538,191.49,191.34,20.07040538]
[1730945723775,22.72513443,191.49,191.31,20.57000538]
[1730945723974,20.07040538,191.45,191.31,20.57000538]
[1730945724180,3.88,191.44,191.31,20.07040538]
[1730945724481,10.16793743,191.44,191.31,20.07040538]
[1730945725277,7.5759,191.44,191.31,20.07040538]
[1730945726575,7.5759,191.44,191.19,37.62]
[1730945726576,20.07040538,191.42,191.19,37.62]
[1730945726775,20.07040538,191.42,191.08,20.64332177]
[1730945726776,20.07040538,191.38,191.22,20.07040538]